{"text_format":"1","workbook":"xlsx","n_sheets":3,"sheets":["Sheet1","Data","Input"],"not_rendered":{"charts":0,"images":0,"macros":0,"external_links":0,"defined_names":0,"comments":0,"pivot_tables":0},"unopened":[],"bounds":{"document_bytes":16777216,"sheet_cells":100000,"rows_first":2000,"rows_last":500,"rows_between":2000,"halvings":0,"cell_chars":16384,"cell_head_chars":4096},"cells_cut":0,"cells_raw":0,"read":"whole","date_system":"1900"}

{"sheet":"Sheet1","index":0,"n_rows":22,"n_cols":3,"rows_kept":22,"cut":false,"hidden":true,"merged":[[11,3,14,3]]}
[1,"Agama","Imtaq"]
[2,"Toleransi","Toleransi"]
[3,null,"Bersaudara"]
[4,null,"Yel-yel"]
[5,null,"Kepribadian (a)"]
[6,null,"Kepribadian (b)"]
[7,null,"PU"]
[8,"Kecerdasan","Penglihatan"]
[9,null,"Toga"]
[10,null,"Bakiyak"]
[11,null,"Estafet Bola"]
[12,null,"Presenter "]
[null,null,"Puisi"]
[null,null,"Peran"]
[13,null,"Kitchen Band"]
[14,null,"Pesan Berantai"]
[null,null,"Ingatan"]
[15,"Ketrampilan","Tali & Ikatan"]
[null,null,"Kompas"]
[null,null,"Alat Keterampilan"]
[16,null,"Bumbung Kemanusiaan"]
[17,null,"Bakti Masyarakat"]

{"sheet":"Data","index":1,"n_rows":46,"n_cols":28,"rows_kept":46,"cut":false,"hidden":false,"merged":[]}
["No","Pangkalan","Barung","Imtaq","Toleransi","Bersaudara","Yel-yel","Kepribadian (a)","Kepribadian (b)","PU","Penglihatan","Toga","Bakiyak","Estafet Bola","Presenter ","Puisi","Peran","Kitchen Band","Pesan Berantai","Ingatan","Tali & Ikatan","Kompas","Alat Keterampilan","Bumbung Kemanusiaan","Bakti Masyarakat","Jumlah","Rangking",1]
[1,"SD N 1","Merah",null,null,null,null,null,null,null,null,null,null,null,null,null,null,null,null,null,null,null,null,null,null,{"$f":"SUM(D2:Y2)","v":0},{"$f":"RANK(Z2,$Z$2:$Z$46,0)","v":1}]
[2,"SD N 2","Putih",null,null,null,null,null,null,null,null,null,null,null,null,null,null,null,null,null,null,null,null,null,null,{"$f":"SUM(D3:Y3)","v":0},{"$f":"RANK(Z3,$Z$2:$Z$46,0)","v":1}]
[3,"SD N 3","Biru",null,null,null,null,null,null,null,null,null,null,null,null,null,null,null,null,null,null,null,null,null,null,0,1]
[4,"SD N 4","Hijau",null,null,null,null,null,null,null,null,null,null,null,null,null,null,null,null,null,null,null,null,null,null,0,1]
[5,"SD N 5","Kuning",null,null,null,null,null,null,null,null,null,null,null,null,null,null,null,null,null,null,null,null,null,null,0,1]
[6,"SD N 6","Merah",null,null,null,null,null,null,null,null,null,null,null,null,null,null,null,null,null,null,null,null,null,null,0,1]
[7,"SD N 7","Putih",null,null,null,null,null,null,null,null,null,null,null,null,null,null,null,null,null,null,null,null,null,null,0,1]
[8,"SD N 8","Biru",null,null,null,null,null,null,null,null,null,null,null,null,null,null,null,null,null,null,null,null,null,null,0,1]
[9,"SD N 9","Hijau",null,null,null,null,null,null,null,null,null,null,null,null,null,null,null,null,null,null,null,null,null,null,0,1]
[10,"SD N 10","Kuning",null,null,null,null,null,null,null,null,null,null,null,null,null,null,null,null,null,null,null,null,null,null,0,1]
[11,"SD N 11","Merah",null,null,null,null,null,null,null,null,null,null,null,null,null,null,null,null,null,null,null,null,null,null,0,1]
[12,"SD N 12","Putih",null,null,null,null,null,null,null,null,null,null,null,null,null,null,null,null,null,null,null,null,null,null,0,1]
[13,"SD N 13","Biru",null,null,null,null,null,null,null,null,null,null,null,null,null,null,null,null,null,null,null,null,null,null,0,1]
[14,"SD N 14","Hijau",null,null,null,null,null,null,null,null,null,null,null,null,null,null,null,null,null,null,null,null,null,null,0,1]
[15,"SD N 15","Kuning",null,null,null,null,null,null,null,null,null,null,null,null,null,null,null,null,null,null,null,null,null,null,0,1]
[16,"SD N 16","Merah",null,null,null,null,null,null,null,null,null,null,null,null,null,null,null,null,null,null,null,null,null,null,0,1]
[17,"SD N 17","Putih",null,null,null,null,null,null,null,null,null,null,null,null,null,null,null,null,null,null,null,null,null,null,0,1]
[18,"SD N 18","Biru",null,null,null,null,null,null,null,null,null,null,null,null,null,null,null,null,null,null,null,null,null,null,0,1]
[19,"SD N 19","Hijau",null,null,null,null,null,null,null,null,null,null,null,null,null,null,null,null,null,null,null,null,null,null,0,1]
[20,"SD N 20","Kuning",null,null,null,null,null,null,null,null,null,null,null,null,null,null,null,null,null,null,null,null,null,null,0,1]
[21,"SD N 21","Merah",null,null,null,null,null,null,null,null,null,null,null,null,null,null,null,null,null,null,null,null,null,null,0,1]
[22,"SD N 22","Putih",null,null,null,null,null,null,null,null,null,null,null,null,null,null,null,null,null,null,null,null,null,null,0,1]
[23,"SD N 23","Biru",null,null,null,null,null,null,null,null,null,null,null,null,null,null,null,null,null,null,null,null,null,null,0,1]
[24,"SD N 24","Hijau",null,null,null,null,null,null,null,null,null,null,null,null,null,null,null,null,null,null,null,null,null,null,0,1]
[25,"SD N 25","Kuning",null,null,null,null,null,null,null,null,null,null,null,null,null,null,null,null,null,null,null,null,null,null,0,1]
[26,"SD N 26","Merah",null,null,null,null,null,null,null,null,null,null,null,null,null,null,null,null,null,null,null,null,null,null,0,1]
[27,"SD N 27","Putih",null,null,null,null,null,null,null,null,null,null,null,null,null,null,null,null,null,null,null,null,null,null,0,1]
[28,"SD N 28","Biru",null,null,null,null,null,null,null,null,null,null,null,null,null,null,null,null,null,null,null,null,null,null,0,1]
[29,"SD N 29","Hijau",null,null,null,null,null,null,null,null,null,null,null,null,null,null,null,null,null,null,null,null,null,null,0,1]
[30,"SD N 30","Kuning",null,null,null,null,null,null,null,null,null,null,null,null,null,null,null,null,null,null,null,null,null,null,0,1]
[31,"SD N 31","Merah",null,null,null,null,null,null,null,null,null,null,null,null,null,null,null,null,null,null,null,null,null,null,0,1]
[32,"SD N 32","Putih",null,null,null,null,null,null,null,null,null,null,null,null,null,null,null,null,null,null,null,null,null,null,0,1]
[33,"SD N 33","Biru",null,null,null,null,null,null,null,null,null,null,null,null,null,null,null,null,null,null,null,null,null,null,0,1]
[34,"SD N 34","Hijau",null,null,null,null,null,null,null,null,null,null,null,null,null,null,null,null,null,null,null,null,null,null,0,1]
[35,"SD N 35","Kuning",null,null,null,null,null,null,null,null,null,null,null,null,null,null,null,null,null,null,null,null,null,null,0,1]
[36,"SD N 36","Merah",null,null,null,null,null,null,null,null,null,null,null,null,null,null,null,null,null,null,null,null,null,null,0,1]
[37,"SD N 37","Putih",null,null,null,null,null,null,null,null,null,null,null,null,null,null,null,null,null,null,null,null,null,null,0,1]
[38,"SD N 38","Biru",null,null,null,null,null,null,null,null,null,null,null,null,null,null,null,null,null,null,null,null,null,null,0,1]
[39,"SD N 39","Hijau",null,null,null,null,null,null,null,null,null,null,null,null,null,null,null,null,null,null,null,null,null,null,{"$f":"SUM(D40:Y40)","v":0},{"$f":"RANK(Z40,$Z$2:$Z$46,0)","v":1}]
[40,"SD N 40","Kuning",null,null,null,null,null,null,null,null,null,null,null,null,null,null,null,null,null,null,null,null,null,null,0,1]
[41,"SD N 41","Merah",null,null,null,null,null,null,null,null,null,null,null,null,null,null,null,null,null,null,null,null,null,null,0,1]
[42,"SD N 42","Putih",null,null,null,null,null,null,null,null,null,null,null,null,null,null,null,null,null,null,null,null,null,null,0,1]
[43,"SD N 43","Biru",null,null,null,null,null,null,null,null,null,null,null,null,null,null,null,null,null,null,null,null,null,null,0,1]
[44,"SD N 44","Hijau",null,null,null,null,null,null,null,null,null,null,null,null,null,null,null,null,null,null,null,null,null,null,0,1]
[45,"SD N 45","Kuning",null,null,null,null,null,null,null,null,null,null,null,null,null,null,null,null,null,null,null,null,null,null,0,1]

{"sheet":"Input","index":2,"n_rows":7,"n_cols":3,"rows_kept":7,"cut":false,"hidden":false,"merged":[]}
[]
[]
[null,"No Dada",15]
[null,"Pangkalan",{"$f":"VLOOKUP(C3,Data!$A$1:$Y$46,2,FALSE)","v":"SD N 15"}]
[null,"Barung",{"$f":"VLOOKUP(C3,Data!$A$1:$Y$46,3,FALSE)","v":"Kuning"}]
[null,"Kedai","Bumbung Kemanusiaan"]
[null,"Nilai"]